[Event "*** SCC Grand Prix: Titled Tuesday Blitz"]
[Site "Chess.com"]
[Date "2020.09.29"]
[Round "8"]
[White "ZverevLev"]
[Black "shineatchess"]
[Result "1-0"]
[WhiteElo "2359"]
[BlackElo "2204"]
[TimeControl "180+1"]
[EndTime "11:31:28 PDT"]
[Termination "ZverevLev won by resignation"]

1. e4 {[%clk 0:02:45.7]} 1... Nf6 {[%clk 0:02:57.9]} 2. e5 {[%clk 0:02:44.2]}
2... Nd5 {[%clk 0:02:57.9]} 3. c4 {[%clk 0:02:45]} 3... Nb6 {[%clk 0:02:57.4]}
4. d4 {[%clk 0:02:45.9]} 4... d6 {[%clk 0:02:57.2]} 5. exd6 {[%clk 0:02:46.2]}
5... cxd6 {[%clk 0:02:56.8]} 6. Nc3 {[%clk 0:02:46.5]} 6... g6 {[%clk
0:02:57.1]} 7. Be3 {[%clk 0:02:46.7]} 7... Bg7 {[%clk 0:02:57.1]} 8. Rc1 {[%clk
0:02:47.6]} 8... O-O {[%clk 0:02:56.2]} 9. Nf3 {[%clk 0:02:47.8]} 9... Bg4
{[%clk 0:02:51.9]} 10. Be2 {[%clk 0:02:47.2]} 10... Nc6 {[%clk 0:02:48.9]} 11.
b3 {[%clk 0:02:45.4]} 11... d5 {[%clk 0:02:45.7]} 12. c5 {[%clk 0:02:44.4]}
12... Nc8 {[%clk 0:02:44.8]} 13. h3 {[%clk 0:02:44.7]} 13... Bxf3 {[%clk
0:02:44.3]} 14. Bxf3 {[%clk 0:02:44.8]} 14... e6 {[%clk 0:02:45.2]} 15. O-O
{[%clk 0:02:44]} 15... N8e7 {[%clk 0:02:45]} 16. g4 {[%clk 0:02:42.9]} 16... e5
{[%clk 0:02:29.6]} 17. Ne2 {[%clk 0:02:35.9]} 17... f5 {[%clk 0:02:04.3]} 18.
dxe5 {[%clk 0:02:09.2]} 18... Nxe5 {[%clk 0:02:02.8]} 19. Bg2 {[%clk 0:02:07.9]}
19... fxg4 {[%clk 0:02:00.5]} 20. hxg4 {[%clk 0:02:04.6]} 20... Nxg4 {[%clk
0:01:59.4]} 21. Nd4 {[%clk 0:02:05.1]} 21... Nxe3 {[%clk 0:01:39.8]} 22. fxe3
{[%clk 0:02:06]} 22... Qd7 {[%clk 0:01:38.2]} 23. Qe2 {[%clk 0:02:00.8]} 23...
Nf5 {[%clk 0:01:26.8]} 24. Nxf5 {[%clk 0:01:57.1]} 24... Rxf5 {[%clk 0:01:25.1]}
25. Rxf5 {[%clk 0:01:48.8]} 25... Qxf5 {[%clk 0:01:24.9]} 26. Rf1 {[%clk
0:01:49.7]} 26... Qg5 {[%clk 0:01:23.5]} 27. Qf3 {[%clk 0:01:46.9]} 27... d4
{[%clk 0:00:59.9]} 28. Qd5+ {[%clk 0:01:40.6]} 28... Qxd5 {[%clk 0:00:58.4]} 29.
Bxd5+ {[%clk 0:01:41.5]} 29... Kh8 {[%clk 0:00:59.1]} 30. Bxb7 {[%clk
0:01:40.8]} 30... Rd8 {[%clk 0:00:45.9]} 31. c6 {[%clk 0:01:38.9]} 31... Be5
{[%clk 0:00:45]} 32. exd4 {[%clk 0:01:33.1]} 32... Rxd4 {[%clk 0:00:43]} 33. Re1
{[%clk 0:01:30.3]} 33... Bc7 {[%clk 0:00:40.4]} 34. Re8+ {[%clk 0:01:27.8]}
34... Kg7 {[%clk 0:00:39.6]} 35. Re7+ {[%clk 0:01:27.8]} 35... Kf6 {[%clk
0:00:38.8]} 36. Rxc7 {[%clk 0:01:28.4]} 1-0

[Event "*** SCC Grand Prix: Titled Tuesday Blitz"]
[Site "Chess.com"]
[Date "2020.09.29"]
[Round "8"]
[White "azikom"]
[Black "mr_gustavo"]
[Result "1-0"]
[WhiteElo "2644"]
[BlackElo "2376"]
[TimeControl "180+1"]
[EndTime "11:31:29 PDT"]
[Termination "azikom won on time"]

1. d4 {[%clk 0:02:58.8]} 1... Nf6 {[%clk 0:02:59.4]} 2. Nf3 {[%clk 0:02:59.6]}
2... e6 {[%clk 0:02:58.5]} 3. Bf4 {[%clk 0:03:00.1]} 3... d5 {[%clk 0:02:58.2]}
4. e3 {[%clk 0:03:00.4]} 4... Bd6 {[%clk 0:02:58]} 5. Bg3 {[%clk 0:03:00.2]}
5... O-O {[%clk 0:02:58]} 6. c4 {[%clk 0:03:00.2]} 6... c6 {[%clk 0:02:56.2]} 7.
Nc3 {[%clk 0:03:00.7]} 7... Qc7 {[%clk 0:02:55.4]} 8. Qc2 {[%clk 0:02:57.8]}
8... a6 {[%clk 0:02:50.9]} 9. c5 {[%clk 0:02:52]} 9... Bxg3 {[%clk 0:02:48.5]}
10. hxg3 {[%clk 0:02:52.5]} 10... Nbd7 {[%clk 0:02:31.1]} 11. Bd3 {[%clk
0:02:47.8]} 11... h6 {[%clk 0:02:30.5]} 12. O-O-O {[%clk 0:02:37.4]} 12... b5
{[%clk 0:02:22.9]} 13. e4 {[%clk 0:02:31.7]} 13... dxe4 {[%clk 0:02:22]} 14.
Nxe4 {[%clk 0:02:31.4]} 14... Nxe4 {[%clk 0:02:22.4]} 15. Bxe4 {[%clk
0:02:31.7]} 15... Nf6 {[%clk 0:02:23.3]} 16. Ne5 {[%clk 0:02:24.7]} 16... Nd5
{[%clk 0:02:11.6]} 17. Kb1 {[%clk 0:02:24.1]} 17... a5 {[%clk 0:02:09.2]} 18. g4
{[%clk 0:02:24]} 18... Nb4 {[%clk 0:02:00.8]} 19. Qd2 {[%clk 0:02:19.8]} 19...
f6 {[%clk 0:01:57.1]} 20. Ng6 {[%clk 0:02:14.1]} 20... Rd8 {[%clk 0:01:56.9]}
21. a3 {[%clk 0:02:13.1]} 21... Nd5 {[%clk 0:01:50.9]} 22. f4 {[%clk 0:02:06.4]}
22... b4 {[%clk 0:01:44.3]} 23. a4 {[%clk 0:02:05.7]} 23... b3 {[%clk
0:01:42.9]} 24. g5 {[%clk 0:02:05.2]} 24... fxg5 {[%clk 0:01:30.3]} 25. fxg5
{[%clk 0:02:04.6]} 25... Ba6 {[%clk 0:00:43.2]} 26. gxh6 {[%clk 0:02:03.5]}
26... Nf6 {[%clk 0:00:32.1]} 27. h7+ {[%clk 0:01:50.9]} 27... Nxh7 {[%clk
0:00:29.8]} 28. Rxh7 {[%clk 0:01:48.6]} 28... Kxh7 {[%clk 0:00:28.8]} 29. Rh1+
{[%clk 0:01:41.5]} 29... Kg8 {[%clk 0:00:28.3]} 30. Qf2 {[%clk 0:01:37.3]} 1-0

[Event "*** SCC Grand Prix: Titled Tuesday Blitz"]
[Site "Chess.com"]
[Date "2020.09.29"]
[Round "8"]
[White "ural58"]
[Black "artichaud"]
[Result "0-1"]
[WhiteElo "2339"]
[BlackElo "2224"]
[TimeControl "180+1"]
[EndTime "11:31:31 PDT"]
[Termination "artichaud won on time"]

1. e4 {[%clk 0:03:00.9]} 1... d6 {[%clk 0:03:00.2]} 2. d4 {[%clk 0:02:58.9]}
2... Nf6 {[%clk 0:03:00.7]} 3. Nc3 {[%clk 0:02:58.2]} 3... c6 {[%clk 0:03:01.2]}
4. f4 {[%clk 0:02:57.3]} 4... Qa5 {[%clk 0:03:00.6]} 5. Qd2 {[%clk 0:02:56.6]}
5... Nbd7 {[%clk 0:02:55.7]} 6. a3 {[%clk 0:02:52.3]} 6... e5 {[%clk 0:02:53.6]}
7. Nf3 {[%clk 0:02:49.4]} 7... Be7 {[%clk 0:02:51.5]} 8. b4 {[%clk 0:02:34.5]}
8... Qc7 {[%clk 0:02:50.4]} 9. Bb2 {[%clk 0:00:56.6]} 9... O-O {[%clk
0:02:48.9]} 10. Be2 {[%clk 0:00:52.8]} 10... Re8 {[%clk 0:02:43.7]} 11. O-O
{[%clk 0:00:48.1]} 11... Bf8 {[%clk 0:02:42]} 12. Rae1 {[%clk 0:00:31.2]} 12...
a5 {[%clk 0:02:40.7]} 13. b5 {[%clk 0:00:26.3]} 13... a4 {[%clk 0:02:39.4]} 14.
Ng5 {[%clk 0:00:20.1]} 14... h6 {[%clk 0:02:33.1]} 15. Nxf7 {[%clk 0:00:19.9]}
15... Kxf7 {[%clk 0:02:30.9]} 16. fxe5 {[%clk 0:00:20.8]} 16... dxe5 {[%clk
0:02:27.3]} 17. Bh5+ {[%clk 0:00:20.9]} 17... Kg8 {[%clk 0:02:21.3]} 18. Bxe8
{[%clk 0:00:20.6]} 18... Nxe8 {[%clk 0:02:20.7]} 19. Qf2 {[%clk 0:00:18.8]}
19... Nef6 {[%clk 0:02:14.2]} 20. bxc6 {[%clk 0:00:18.9]} 20... bxc6 {[%clk
0:02:13.3]} 21. d5 {[%clk 0:00:18.7]} 21... Bc5 {[%clk 0:02:10.7]} 22. Re3
{[%clk 0:00:16.5]} 22... Ba6 {[%clk 0:01:49.6]} 23. Rfe1 {[%clk 0:00:14.2]}
23... Ng4 {[%clk 0:01:45.3]} 24. Qg3 {[%clk 0:00:12.4]} 24... Nxe3 {[%clk
0:01:43.9]} 25. Rxe3 {[%clk 0:00:13.3]} 25... Rf8 {[%clk 0:01:38.5]} 26. h3
{[%clk 0:00:12.6]} 26... Bxe3+ {[%clk 0:01:33.3]} 27. Qxe3 {[%clk 0:00:08.9]}
27... Qb6 {[%clk 0:01:33.1]} 28. Qxb6 {[%clk 0:00:08]} 28... Nxb6 {[%clk
0:01:34]} 29. dxc6 {[%clk 0:00:08.4]} 29... Nc4 {[%clk 0:01:30.9]} 30. Nd5
{[%clk 0:00:09.3]} 30... Nxb2 {[%clk 0:01:28.5]} 0-1

[Event "*** SCC Grand Prix: Titled Tuesday Blitz"]
[Site "Chess.com"]
[Date "2020.09.29"]
[Round "8"]
[White "TimKett"]
[Black "maxip32"]
[Result "0-1"]
[WhiteElo "2171"]
[BlackElo "2345"]
[TimeControl "180+1"]
[EndTime "11:31:32 PDT"]
[Termination "maxip32 won by resignation"]

1. e4 {[%clk 0:03:00.9]} 1... c5 {[%clk 0:02:55.1]} 2. Nf3 {[%clk 0:02:59.9]}
2... d6 {[%clk 0:02:55.4]} 3. d4 {[%clk 0:02:59.4]} 3... cxd4 {[%clk 0:02:56.3]}
4. Nxd4 {[%clk 0:02:59.4]} 4... Nf6 {[%clk 0:02:57]} 5. Nc3 {[%clk 0:02:59.7]}
5... a6 {[%clk 0:02:57.5]} 6. Bg5 {[%clk 0:02:59.5]} 6... e6 {[%clk 0:02:57.5]}
7. f4 {[%clk 0:02:59.5]} 7... Nbd7 {[%clk 0:02:57.4]} 8. Qf3 {[%clk 0:02:59.3]}
8... h6 {[%clk 0:02:57.7]} 9. Bh4 {[%clk 0:02:57.1]} 9... e5 {[%clk 0:02:55.4]}
10. Nf5 {[%clk 0:02:46.7]} 10... exf4 {[%clk 0:02:53.4]} 11. Qxf4 {[%clk
0:02:15.6]} 11... g5 {[%clk 0:02:53]} 12. Nxd6+ {[%clk 0:02:15.1]} 12... Bxd6
{[%clk 0:02:53.8]} 13. Qxd6 {[%clk 0:02:14.8]} 13... gxh4 {[%clk 0:02:54.7]} 14.
e5 {[%clk 0:02:07.8]} 14... Qe7 {[%clk 0:02:40.8]} 15. Qxe7+ {[%clk 0:02:05.8]}
15... Kxe7 {[%clk 0:02:41.7]} 16. exf6+ {[%clk 0:02:04.9]} 16... Nxf6 {[%clk
0:02:42.6]} 17. O-O-O {[%clk 0:02:02.7]} 17... h3 {[%clk 0:02:43.2]} 18. gxh3
{[%clk 0:01:58.8]} 18... Be6 {[%clk 0:02:42.5]} 19. Bg2 {[%clk 0:01:55.4]} 19...
Rab8 {[%clk 0:02:39]} 20. Rhe1 {[%clk 0:01:54.1]} 20... Kf8 {[%clk 0:02:33.9]}
21. Ne4 {[%clk 0:01:33.7]} 21... Nxe4 {[%clk 0:02:25.7]} 22. Rxe4 {[%clk
0:01:33.1]} 22... Rg8 {[%clk 0:02:26.2]} 23. Rd2 {[%clk 0:01:20.4]} 23... Rc8
{[%clk 0:02:21.1]} 24. Red4 {[%clk 0:01:12.4]} 24... b5 {[%clk 0:01:57.7]} 25.
Bb7 {[%clk 0:00:57.8]} 25... Rg1+ {[%clk 0:01:37.7]} 26. Rd1 {[%clk 0:00:57.2]}
26... Rxd1+ {[%clk 0:01:37.9]} 27. Kxd1 {[%clk 0:00:54.7]} 27... Rb8 {[%clk
0:01:38.8]} 28. Bxa6 {[%clk 0:00:53.8]} 28... Ke7 {[%clk 0:01:31.4]} 29. c4
{[%clk 0:00:47.8]} 29... bxc4 {[%clk 0:01:28.3]} 30. Bxc4 {[%clk 0:00:46.7]}
30... Rxb2 {[%clk 0:01:28.2]} 31. Bxe6 {[%clk 0:00:44.7]} 31... Kxe6 {[%clk
0:01:28.1]} 32. a4 {[%clk 0:00:38.9]} 32... Rxh2 {[%clk 0:01:14.2]} 33. Rd2
{[%clk 0:00:37.8]} 33... Rxh3 {[%clk 0:01:13.7]} 34. Ra2 {[%clk 0:00:37.4]}
34... Rh1+ {[%clk 0:01:10.5]} 35. Kc2 {[%clk 0:00:36.6]} 35... Rh2+ {[%clk
0:01:11.1]} 36. Kb3 {[%clk 0:00:36.7]} 36... Rxa2 {[%clk 0:01:10.5]} 37. Kxa2
{[%clk 0:00:36.8]} 37... Kd5 {[%clk 0:01:10.9]} 0-1

[Event "*** SCC Grand Prix: Titled Tuesday Blitz"]
[Site "Chess.com"]
[Date "2020.09.29"]
[Round "8"]
[White "ChessWarrior3"]
[Black "leoduarte"]
[Result "0-1"]
[WhiteElo "2138"]
[BlackElo "2303"]
[TimeControl "180+1"]
[EndTime "11:31:35 PDT"]
[Termination "leoduarte won by resignation"]

1. e4 {[%clk 0:03:00.9]} 1... c5 {[%clk 0:02:59.5]} 2. Nf3 {[%clk 0:03:00.6]}
2... Nc6 {[%clk 0:02:59.8]} 3. d4 {[%clk 0:03:01.1]} 3... cxd4 {[%clk
0:03:00.7]} 4. Nxd4 {[%clk 0:03:01.4]} 4... g6 {[%clk 0:03:01.1]} 5. c4 {[%clk
0:03:00.8]} 5... Bg7 {[%clk 0:02:56.5]} 6. Be3 {[%clk 0:03:01]} 6... Nf6 {[%clk
0:02:55.7]} 7. Nc3 {[%clk 0:03:01.3]} 7... O-O {[%clk 0:02:52.5]} 8. f3 {[%clk
0:03:00.6]} 8... d6 {[%clk 0:02:51.8]} 9. Be2 {[%clk 0:02:59.6]} 9... Bd7 {[%clk
0:02:51.9]} 10. Qd2 {[%clk 0:02:57.8]} 10... Nxd4 {[%clk 0:02:50]} 11. Bxd4
{[%clk 0:02:57.4]} 11... a5 {[%clk 0:02:50.6]} 12. Nd5 {[%clk 0:02:50]} 12... e6
{[%clk 0:02:12.6]} 13. Nxf6+ {[%clk 0:02:43]} 13... Bxf6 {[%clk 0:02:13.5]} 14.
Bxf6 {[%clk 0:02:43.2]} 14... Qxf6 {[%clk 0:02:13.4]} 15. O-O-O {[%clk 0:02:43]}
15... Rfd8 {[%clk 0:02:05.7]} 16. Qd4 {[%clk 0:02:30.8]} 16... Qg5+ {[%clk
0:01:59.8]} 17. Qd2 {[%clk 0:02:22]} 17... Qxg2 {[%clk 0:01:55.8]} 18. Qe3
{[%clk 0:02:17.6]} 18... Bc6 {[%clk 0:01:26.6]} 19. h3 {[%clk 0:02:02.3]} 19...
Qg3 {[%clk 0:01:22.8]} 20. Qd4 {[%clk 0:01:57.6]} 20... Qf4+ {[%clk 0:01:18]}
21. Qd2 {[%clk 0:01:56.9]} 21... Qe5 {[%clk 0:01:09]} 22. h4 {[%clk 0:01:55.4]}
22... h5 {[%clk 0:01:02.1]} 23. Rdg1 {[%clk 0:01:52.3]} 23... a4 {[%clk
0:00:52.9]} 24. Rg5 {[%clk 0:01:48.7]} 24... Qf6 {[%clk 0:00:48]} 25. f4 {[%clk
0:01:47.7]} 25... Bxe4 {[%clk 0:00:41.7]} 26. Rhg1 {[%clk 0:01:45]} 26... Kf8
{[%clk 0:00:41.9]} 27. Qe3 {[%clk 0:01:37.2]} 27... Bf5 {[%clk 0:00:27.4]} 28.
Qb6 {[%clk 0:01:24.2]} 28... a3 {[%clk 0:00:25.2]} 29. Bxh5 {[%clk 0:01:09]}
29... Qxb2+ {[%clk 0:00:21.2]} 0-1

[Event "*** SCC Grand Prix: Titled Tuesday Blitz"]
[Site "Chess.com"]
[Date "2020.09.29"]
[Round "8"]
[White "JoliyRoger"]
[Black "Kildepiotr"]
[Result "0-1"]
[WhiteElo "2439"]
[BlackElo "2580"]
[TimeControl "180+1"]
[EndTime "11:31:44 PDT"]
[Termination "Kildepiotr won by resignation"]

1. Nf3 {[%clk 0:03:00.9]} 1... g6 {[%clk 0:02:51.9]} 2. d4 {[%clk 0:03:00]} 2...
Bg7 {[%clk 0:02:52.4]} 3. c4 {[%clk 0:03:00.5]} 3... d6 {[%clk 0:02:49.5]} 4. h3
{[%clk 0:02:59.4]} 4... Nd7 {[%clk 0:02:49.3]} 5. e4 {[%clk 0:02:59.1]} 5... e5
{[%clk 0:02:49.7]} 6. d5 {[%clk 0:02:59.2]} 6... Nc5 {[%clk 0:02:49.3]} 7. Nc3
{[%clk 0:02:58.9]} 7... a5 {[%clk 0:02:49.7]} 8. Be3 {[%clk 0:02:55.3]} 8... Qe7
{[%clk 0:02:46.4]} 9. Be2 {[%clk 0:02:51.6]} 9... f5 {[%clk 0:02:43.9]} 10. Nd2
{[%clk 0:02:50.2]} 10... Bh6 {[%clk 0:02:38.8]} 11. Bxc5 {[%clk 0:02:27.6]}
11... dxc5 {[%clk 0:02:39.7]} 12. O-O {[%clk 0:02:27.8]} 12... Nf6 {[%clk
0:02:38.8]} 13. Bf3 {[%clk 0:02:25]} 13... O-O {[%clk 0:02:37.9]} 14. Re1 {[%clk
0:02:12.8]} 14... Bxd2 {[%clk 0:02:36.6]} 15. Qxd2 {[%clk 0:02:11.1]} 15... f4
{[%clk 0:02:36.9]} 16. Rad1 {[%clk 0:02:02.9]} 16... Ne8 {[%clk 0:02:35.9]} 17.
Nb5 {[%clk 0:01:32.8]} 17... Nd6 {[%clk 0:02:35.3]} 18. Nxd6 {[%clk 0:01:33.1]}
18... cxd6 {[%clk 0:02:36.2]} 19. a3 {[%clk 0:01:32.9]} 19... a4 {[%clk
0:02:33.9]} 20. Rb1 {[%clk 0:01:30.5]} 20... h5 {[%clk 0:02:32.1]} 21. b4 {[%clk
0:01:30.5]} 21... axb3 {[%clk 0:02:32]} 22. Rxb3 {[%clk 0:01:31.1]} 22... Ra4
{[%clk 0:02:29.9]} 23. Qe2 {[%clk 0:01:29.7]} 23... Kg7 {[%clk 0:02:27.1]} 24.
Reb1 {[%clk 0:01:29.8]} 24... Rh8 {[%clk 0:02:20.1]} 25. Qd1 {[%clk 0:01:18.5]}
25... Rxc4 {[%clk 0:02:17.4]} 26. R1b2 {[%clk 0:01:12]} 26... Rd4 {[%clk
0:02:04.2]} 27. Qb1 {[%clk 0:01:09.9]} 27... Kh6 {[%clk 0:02:01.8]} 28. Rb6
{[%clk 0:01:03.8]} 28... Rd8 {[%clk 0:01:55.6]} 29. Qc2 {[%clk 0:00:59.3]} 29...
Qg5 {[%clk 0:01:49.4]} 30. Kh2 {[%clk 0:00:56.1]} 30... Qe7 {[%clk 0:01:42]} 31.
a4 {[%clk 0:00:51.7]} 31... Rg8 {[%clk 0:01:29]} 32. a5 {[%clk 0:00:34.5]} 32...
Kh7 {[%clk 0:01:23.6]} 33. Qb1 {[%clk 0:00:33.1]} 33... Rg7 {[%clk 0:01:22.4]}
34. a6 {[%clk 0:00:20.6]} 34... bxa6 {[%clk 0:01:21.7]} 35. Rb8 {[%clk
0:00:20.6]} 35... Qc7 {[%clk 0:01:15.5]} 36. Qd1 {[%clk 0:00:18]} 36... Rxd1
{[%clk 0:01:14.5]} 37. Bxd1 {[%clk 0:00:18.2]} 0-1

[Event "*** SCC Grand Prix: Titled Tuesday Blitz"]
[Site "Chess.com"]
[Date "2020.09.29"]
[Round "8"]
[White "GelmanAlexander"]
[Black "Belka1989"]
[Result "1-0"]
[WhiteElo "2542"]
[BlackElo "2299"]
[TimeControl "180+1"]
[EndTime "11:31:50 PDT"]
[Termination "GelmanAlexander won by resignation"]

1. d4 {[%clk 0:03:00.9]} 1... Nf6 {[%clk 0:02:59.5]} 2. Nc3 {[%clk 0:03:01.1]}
2... c5 {[%clk 0:02:58.6]} 3. d5 {[%clk 0:02:57.3]} 3... e5 {[%clk 0:02:58.4]}
4. e4 {[%clk 0:02:55]} 4... d6 {[%clk 0:02:58.4]} 5. h3 {[%clk 0:02:51.5]} 5...
Be7 {[%clk 0:02:53]} 6. Nf3 {[%clk 0:02:51.3]} 6... a6 {[%clk 0:02:37.5]} 7. a4
{[%clk 0:02:51.1]} 7... O-O {[%clk 0:02:36.2]} 8. Nd2 {[%clk 0:02:45.3]} 8...
Ne8 {[%clk 0:02:30.4]} 9. Nc4 {[%clk 0:02:44.6]} 9... f5 {[%clk 0:02:26.6]} 10.
exf5 {[%clk 0:02:38.5]} 10... Bxf5 {[%clk 0:02:27.5]} 11. Bd3 {[%clk 0:02:38.1]}
11... Nd7 {[%clk 0:02:08.3]} 12. O-O {[%clk 0:02:35.4]} 12... Bg5 {[%clk
0:01:57.1]} 13. Bxf5 {[%clk 0:02:19.9]} 13... Rxf5 {[%clk 0:01:58]} 14. Qg4
{[%clk 0:02:14.8]} 14... g6 {[%clk 0:01:52.6]} 15. Bxg5 {[%clk 0:02:03]} 15...
Rxg5 {[%clk 0:01:53.1]} 16. Qe6+ {[%clk 0:02:01]} 16... Kg7 {[%clk 0:01:52]} 17.
Nxd6 {[%clk 0:01:59.9]} 17... Nxd6 {[%clk 0:01:43.7]} 18. Qxd6 {[%clk
0:02:00.8]} 18... Nf6 {[%clk 0:01:36.7]} 19. Qxc5 {[%clk 0:01:48.5]} 19... Rc8
{[%clk 0:01:25.4]} 20. Qe3 {[%clk 0:01:48.3]} 20... Rf5 {[%clk 0:01:15]} 21.
Rad1 {[%clk 0:01:44.3]} 21... h5 {[%clk 0:01:03.4]} 22. f4 {[%clk 0:01:18.8]}
22... exf4 {[%clk 0:00:55.5]} 23. Rxf4 {[%clk 0:01:18.6]} 23... Rxf4 {[%clk
0:00:53.6]} 24. Qxf4 {[%clk 0:01:19.5]} 24... Qb6+ {[%clk 0:00:49]} 25. Qd4
{[%clk 0:01:19.2]} 25... Qxb2 {[%clk 0:00:45.4]} 26. Rd3 {[%clk 0:01:09.9]}
26... Qxc2 {[%clk 0:00:31.3]} 27. Rf3 {[%clk 0:01:06.6]} 27... Rf8 {[%clk
0:00:19.7]} 28. d6 {[%clk 0:01:06.7]} 28... Qc1+ {[%clk 0:00:10.2]} 29. Kh2
{[%clk 0:01:06.6]} 29... h4 {[%clk 0:00:09.3]} 30. Nd5 {[%clk 0:01:01.9]} 1-0

[Event "*** SCC Grand Prix: Titled Tuesday Blitz"]
[Site "Chess.com"]
[Date "2020.09.29"]
[Round "8"]
[White "tteshan"]
[Black "GianmarcoVaR"]
[Result "1-0"]
[WhiteElo "2395"]
[BlackElo "2532"]
[TimeControl "180+1"]
[EndTime "11:31:50 PDT"]
[Termination "tteshan won by resignation"]

1. e4 {[%clk 0:03:00.9]} 1... c5 {[%clk 0:02:40.6]} 2. Nf3 {[%clk 0:03:00.2]}
2... d6 {[%clk 0:02:40.4]} 3. d4 {[%clk 0:02:58.4]} 3... cxd4 {[%clk 0:02:39.8]}
4. Nxd4 {[%clk 0:02:59.3]} 4... Nf6 {[%clk 0:02:39.3]} 5. Nc3 {[%clk 0:02:58.8]}
5... a6 {[%clk 0:02:39.2]} 6. h3 {[%clk 0:02:53.7]} 6... e5 {[%clk 0:02:36.2]}
7. Nf3 {[%clk 0:02:49.7]} 7... h6 {[%clk 0:02:33.1]} 8. Bc4 {[%clk 0:02:48.3]}
8... Be7 {[%clk 0:02:32.3]} 9. O-O {[%clk 0:02:47.8]} 9... O-O {[%clk
0:02:31.8]} 10. Be3 {[%clk 0:02:45.5]} 10... Be6 {[%clk 0:02:30.4]} 11. Bb3
{[%clk 0:02:39]} 11... Nc6 {[%clk 0:02:24.6]} 12. Qe2 {[%clk 0:02:36.2]} 12...
Na5 {[%clk 0:02:22.3]} 13. Rfd1 {[%clk 0:02:25.4]} 13... Rc8 {[%clk 0:02:01]}
14. Nxe5 {[%clk 0:02:18.1]} 14... b5 {[%clk 0:01:23.2]} 15. Bxe6 {[%clk
0:02:03.8]} 15... fxe6 {[%clk 0:01:23]} 16. Ng6 {[%clk 0:02:04.2]} 16... Re8
{[%clk 0:01:21.1]} 17. e5 {[%clk 0:01:59.6]} 17... Rxc3 {[%clk 0:01:18.2]} 18.
Nxe7+ {[%clk 0:01:52.1]} 18... Rxe7 {[%clk 0:01:09.8]} 19. exf6 {[%clk
0:01:52.3]} 19... Rec7 {[%clk 0:00:57.4]} 20. bxc3 {[%clk 0:01:51.2]} 20... Nc4
{[%clk 0:00:47]} 21. Bd4 {[%clk 0:01:26.6]} 21... Qe8 {[%clk 0:00:36.8]} 22.
fxg7 {[%clk 0:01:25.1]} 22... e5 {[%clk 0:00:35.9]} 23. Be3 {[%clk 0:01:16.2]}
23... h5 {[%clk 0:00:36.2]} 24. Bh6 {[%clk 0:01:11]} 24... Qg6 {[%clk
0:00:35.4]} 25. Qf3 {[%clk 0:01:04.9]} 25... Kh7 {[%clk 0:00:05.2]} 26. Qf8
{[%clk 0:00:55.1]} 1-0

[Event "*** SCC Grand Prix: Titled Tuesday Blitz"]
[Site "Chess.com"]
[Date "2020.09.29"]
[Round "8"]
[White "Rakesh"]
[Black "Fy_Rakotomaharo"]
[Result "0-1"]
[WhiteElo "2439"]
[BlackElo "2677"]
[TimeControl "180+1"]
[EndTime "11:31:55 PDT"]
[Termination "Fy_Rakotomaharo won by resignation"]

1. e4 {[%clk 0:02:57.7]} 1... e5 {[%clk 0:03:00.4]} 2. Nf3 {[%clk 0:02:57.3]}
2... Nc6 {[%clk 0:03:00.9]} 3. d4 {[%clk 0:02:57.5]} 3... exd4 {[%clk
0:03:01.1]} 4. Nxd4 {[%clk 0:02:58.4]} 4... Bc5 {[%clk 0:02:59.9]} 5. Nb3 {[%clk
0:02:55.7]} 5... Bb6 {[%clk 0:02:56]} 6. Nc3 {[%clk 0:02:56.2]} 6... d6 {[%clk
0:02:53.5]} 7. Qe2 {[%clk 0:02:55.8]} 7... a5 {[%clk 0:02:50.9]} 8. Be3 {[%clk
0:02:56.3]} 8... a4 {[%clk 0:02:46.6]} 9. Nd2 {[%clk 0:02:56.2]} 9... a3 {[%clk
0:02:40.3]} 10. b3 {[%clk 0:02:56]} 10... Qf6 {[%clk 0:02:30.6]} 11. e5 {[%clk
0:02:43.9]} 11... Qxe5 {[%clk 0:02:17.3]} 12. Bxb6 {[%clk 0:02:42.2]} 12... cxb6
{[%clk 0:02:18.2]} 13. O-O-O {[%clk 0:02:41.1]} 13... Nf6 {[%clk 0:02:13.9]} 14.
Nc4 {[%clk 0:02:38.8]} 14... Qxe2 {[%clk 0:02:11.2]} 15. Nxd6+ {[%clk
0:02:38.8]} 15... Ke7 {[%clk 0:02:10.7]} 16. Bxe2 {[%clk 0:02:37.8]} 16... Rd8
{[%clk 0:02:10]} 17. Ncb5 {[%clk 0:02:21.4]} 17... Nb4 {[%clk 0:01:55.3]} 18. c3
{[%clk 0:01:58.1]} 18... Nxa2+ {[%clk 0:01:34]} 19. Kb1 {[%clk 0:01:52.8]} 19...
Nxc3+ {[%clk 0:01:33.6]} 20. Nxc3 {[%clk 0:01:52.7]} 20... Rxd6 {[%clk
0:01:33.9]} 21. Rxd6 {[%clk 0:01:44]} 21... Kxd6 {[%clk 0:01:34.3]} 22. Rd1+
{[%clk 0:01:44.4]} 22... Ke7 {[%clk 0:01:33.7]} 23. Ka2 {[%clk 0:01:42]} 23...
Be6 {[%clk 0:01:29.6]} 24. Bf3 {[%clk 0:01:37.2]} 24... Nd7 {[%clk 0:01:04.7]}
25. Bd5 {[%clk 0:01:16.7]} 25... Nc5 {[%clk 0:00:55.7]} 26. Bxe6 {[%clk
0:01:15.5]} 26... fxe6 {[%clk 0:00:45]} 27. b4 {[%clk 0:01:15.3]} 27... Nd7
{[%clk 0:00:44.7]} 28. Nb5 {[%clk 0:01:12.7]} 28... Ne5 {[%clk 0:00:37]} 29. f4
{[%clk 0:00:55.2]} 29... Nc6 {[%clk 0:00:30]} 30. Kb3 {[%clk 0:00:53.1]} 30...
a2 {[%clk 0:00:29.7]} 31. Nc3 {[%clk 0:00:49.5]} 31... a1=Q {[%clk 0:00:28.2]}
0-1

[Event "*** SCC Grand Prix: Titled Tuesday Blitz"]
[Site "Chess.com"]
[Date "2020.09.29"]
[Round "8"]
[White "maximnovik"]
[Black "ajdemipopushi"]
[Result "1-0"]
[WhiteElo "2535"]
[BlackElo "2354"]
[TimeControl "180+1"]
[EndTime "11:31:57 PDT"]
[Termination "maximnovik won on time"]

1. d4 {[%clk 0:02:06.1]} 1... Nf6 {[%clk 0:02:57.1]} 2. Bg5 {[%clk 0:02:03.9]}
2... c5 {[%clk 0:02:55.3]} 3. Bxf6 {[%clk 0:02:03.8]} 3... gxf6 {[%clk
0:02:55.2]} 4. d5 {[%clk 0:02:03.8]} 4... Qb6 {[%clk 0:02:54.9]} 5. Qc1 {[%clk
0:02:03.4]} 5... f5 {[%clk 0:02:54.3]} 6. c4 {[%clk 0:02:02.2]} 6... e5 {[%clk
0:02:37.5]} 7. Nc3 {[%clk 0:01:59.4]} 7... Bh6 {[%clk 0:02:33.7]} 8. e3 {[%clk
0:01:58.9]} 8... d6 {[%clk 0:02:33.5]} 9. Qc2 {[%clk 0:01:53.9]} 9... Nd7 {[%clk
0:02:18.1]} 10. g3 {[%clk 0:01:45]} 10... Nf6 {[%clk 0:02:13.8]} 11. Bh3 {[%clk
0:01:44.5]} 11... f4 {[%clk 0:02:07.2]} 12. exf4 {[%clk 0:01:38.7]} 12... exf4
{[%clk 0:02:05.3]} 13. Bxc8 {[%clk 0:01:37.8]} 13... Rxc8 {[%clk 0:02:04.7]} 14.
Nf3 {[%clk 0:01:36.8]} 14... Qb4 {[%clk 0:01:21.2]} 15. O-O {[%clk 0:01:34.3]}
15... O-O {[%clk 0:01:10.6]} 16. Qf5 {[%clk 0:01:18.7]} 16... Bg7 {[%clk
0:01:08.3]} 17. g4 {[%clk 0:01:10.5]} 17... Qxb2 {[%clk 0:00:18.4]} 18. Rac1
{[%clk 0:01:09.5]} 18... Rcd8 {[%clk 0:00:14.9]} 19. g5 {[%clk 0:01:08.8]} 19...
Nd7 {[%clk 0:00:14.5]} 20. Rc2 {[%clk 0:00:59.7]} 20... Qb4 {[%clk 0:00:11.5]}
21. Ne4 {[%clk 0:00:59.4]} 21... Ne5 {[%clk 0:00:10.9]} 22. Nxe5 {[%clk
0:00:49.7]} 22... Bxe5 {[%clk 0:00:09.8]} 23. h4 {[%clk 0:00:48.1]} 23... f6
{[%clk 0:00:03.1]} 24. g6 {[%clk 0:00:47.1]} 1-0